fUST/lending_fUST_20250601
["ID","MTS","AMOUNT","RATE_DAILY","PERIOD"]
[363432998,1748722240676,-160.0,0.0001797,2]
[363432999,1748722240686,-160.0,0.0001797,2]
[363433000,1748722240696,-626.51,0.00018081,2]
[363433001,1748722240706,-1489.19,0.00018081,2]
[363433002,1748722240715,-430.0,0.00018082,2]
[363433003,1748722240726,-430.0,0.00018082,2]
[363433004,1748722240737,-430.0,0.00018082,2]
[363433005,1748722240752,-430.0,0.00018082,2]
[363433006,1748722240767,-785.73,0.00018082,2]
[363433007,1748722240781,-430.0,0.00018082,2]
[363433008,1748722240793,-884.52,0.00018082,2]
[363433009,1748722240804,-461.57,0.00018082,2]
[363433010,1748722240817,-430.0,0.00018082,2]
[363433011,1748722240830,-430.0,0.00018082,2]
[363433012,1748722240843,-611.46,0.00018082,2]
[363433013,1748722240855,-430.0,0.00018082,2]
[363433014,1748722240868,-211.6912153,0.00018082,2]
[363433015,1748722240880,-462.23,0.00018082,2]
[363433016,1748722240892,-430.0,0.00018082,2]
[363433017,1748722240909,-430.0,0.00018082,2]
[363433018,1748722240922,-829.18,0.00018082,2]
[363433019,1748722240934,-533.41,0.00018082,2]
[363433020,1748722240945,-800.76,0.00018082,2]
[363433021,1748722240957,-430.0,0.00018082,2]
[363433022,1748722240969,-430.0,0.00018082,2]
[363433023,1748722240981,-451.96,0.00018082,2]
[363433024,1748722240995,-430.0,0.00018082,2]
[363433025,1748722241007,-794.28,0.00018082,2]
[363433026,1748722241019,-1043.12,0.00018082,2]
[363433027,1748722241029,-612.57,0.00018082,2]
[363433028,1748722241040,-670.9,0.00018082,2]
[363433029,1748722241052,-1116.84,0.00018082,2]
[363433030,1748722241064,-1063.19,0.00018082,2]
[363433031,1748722241076,-430.0,0.00018082,2]
[363433032,1748722241089,-430.0,0.00018082,2]
[363433033,1748722241100,-1012.57,0.00018082,2]
[363433034,1748722241113,-843.24,0.00018082,2]
[363433035,1748722241127,-1455.93,0.00018082,2]
[363433036,1748722241140,-2184.12,0.00018082,2]
[363433037,1748722241155,-494.22,0.00018082,2]
[363433038,1748722241167,-430.0,0.00018082,2]
[363433039,1748722241177,-612.01346851,0.00018141,2]
[363433040,1748722241187,-626.51,0.00018355,2]
[363433041,1748722241198,-1489.19,0.00018355,2]
[363433042,1748722241209,-430.0,0.00018356,2]
[363433043,1748722241221,-430.0,0.00018356,2]
[363433044,1748722241235,-567.82041047,0.00018356,2]
[363433045,1748722241248,-430.0,0.00018356,2]
[363433046,1748722241261,-785.73,0.00018356,2]
[363433047,1748722241276,-430.0,0.00018356,2]
[363433048,1748722241287,-884.52,0.00018356,2]
[363433049,1748722241299,-461.57,0.00018356,2]
[363433050,1748722241312,-430.0,0.00018356,2]
[363433051,1748722241323,-430.0,0.00018356,2]
[363433052,1748722241334,-611.46,0.00018356,2]
[363433053,1748722241346,-430.0,0.00018356,2]
[363433054,1748722241357,-462.23,0.00018356,2]
[363433055,1748722241368,-430.0,0.00018356,2]
[363433056,1748722241379,-430.0,0.00018356,2]
[363433057,1748722241391,-829.18,0.00018356,2]
[363433058,1748722241404,-533.41,0.00018356,2]
[363433059,1748722241414,-800.76,0.00018356,2]
[363433060,1748722241426,-430.0,0.00018356,2]
[363433061,1748722241437,-430.0,0.00018356,2]
[363433062,1748722241449,-430.0,0.00018356,2]
[363433063,1748722241460,-794.28,0.00018356,2]
[363433064,1748722241471,-1043.12,0.00018356,2]
[363433065,1748722241483,-612.57,0.00018356,2]
[363433066,1748722241494,-670.9,0.00018356,2]
[363433067,1748722241506,-1116.84,0.00018356,2]
[363433068,1748722241517,-1063.19,0.00018356,2]
[363433069,1748722241528,-430.0,0.00018356,2]
[363433070,1748722241539,-430.0,0.00018356,2]
[363433071,1748722241551,-1012.57,0.00018356,2]
[363433072,1748722241563,-843.24,0.00018356,2]
[363433073,1748722241575,-1455.93,0.00018356,2]
[363433074,1748722241586,-2184.12,0.00018356,2]
[363433075,1748722241597,-494.22,0.00018356,2]
[363433076,1748722241608,-430.0,0.00018356,2]
[363433077,1748722241620,-612.01346851,0.00018383,2]
[363433078,1748722241634,-612.01346851,0.00018624,2]
[363433079,1748722241646,-626.51,0.00018629,2]
[363433080,1748722241659,-1489.19,0.00018629,2]
[363433081,1748722241670,-533.5,0.0001863,2]
[363433082,1748722241681,-430.0,0.0001863,2]
[363433083,1748722241693,-430.0,0.0001863,2]
[363433084,1748722241704,-785.73,0.0001863,2]
[363433085,1748722241715,-430.0,0.0001863,2]
[363433086,1748722241726,-884.52,0.0001863,2]
[363433087,1748722241737,-461.57,0.0001863,2]
[363433088,1748722241749,-430.0,0.0001863,2]
[363433089,1748722241760,-430.0,0.0001863,2]
[363433090,1748722241771,-611.46,0.0001863,2]
[363433091,1748722241784,-430.0,0.0001863,2]
[363433092,1748722241794,-462.23,0.0001863,2]
[363433093,1748722241805,-430.0,0.0001863,2]
[363433094,1748722241817,-412.04,0.0001863,2]
[363433095,1748722241828,-829.18,0.0001863,2]
[363433096,1748722241839,-533.41,0.0001863,2]
[363433097,1748722241850,-800.76,0.0001863,2]
[363433098,1748722241861,-430.0,0.0001863,2]
[363433099,1748722241874,-430.0,0.0001863,2]
[363433100,1748722241886,-430.0,0.0001863,2]
[363433101,1748722241897,-794.28,0.0001863,2]
[363433102,1748722241911,-1043.12,0.0001863,2]
[363433103,1748722241922,-612.57,0.0001863,2]
[363433104,1748722241934,-670.9,0.0001863,2]
[363433105,1748722241944,-1116.84,0.0001863,2]
[363433106,1748722241954,-1063.19,0.0001863,2]
[363433107,1748722241963,-430.0,0.0001863,2]
[363433108,1748722241973,-430.0,0.0001863,2]
[363433109,1748722241983,-1012.57,0.0001863,2]
[363433110,1748722241992,-843.24,0.0001863,2]
[363433111,1748722242002,-1455.93,0.0001863,2]
[363433112,1748722242012,-2184.12,0.0001863,2]
[363433113,1748722242021,-494.22,0.0001863,2]
[363433114,1748722242030,-430.0,0.0001863,2]
[363433115,1748722242040,-612.01346851,0.00018866,2]
[363433116,1748722242050,-626.51,0.00018866,2]
[363433117,1748722242060,-626.51,0.00018866,2]
[363433118,1748722242072,-626.51,0.00018866,2]
[363433119,1748722242081,-626.51,0.00018866,2]
[363433120,1748722242092,-626.67,0.00018866,2]
[363433121,1748722242102,-1489.19,0.00018866,2]
[363433122,1748722242112,-1489.19,0.00018866,2]
[363433123,1748722242122,-1489.19,0.00018866,2]
[363433124,1748722242131,-1489.19,0.00018866,2]
[363433125,1748722242141,-1489.25,0.00018866,2]
[363433126,1748722242151,-207.4,0.00018867,2]
[363433127,1748722242161,-300.0,0.00018867,2]
[363433128,1748722242171,-300.0,0.00018867,2]
[363433129,1748722242365,-300.0,0.00018867,2]
[363433130,1748722242382,-300.0,0.00018867,2]
[363433131,1748722242392,-300.0,0.00018867,2]
[363433132,1748722242403,-5000.0,0.00018867,2]
[363433133,1748722242412,-300.0,0.00018867,2]
[363433134,1748722242421,-300.0,0.00018867,2]
[363433135,1748722242431,-300.0,0.00018867,2]
[363433136,1748722242441,-2817.80628261,0.00018867,2]
[363433137,1748722242451,-300.0,0.00018867,2]
[363433138,1748722242460,-300.0,0.00018867,2]
[363433139,1748722242471,-300.0,0.00018867,2]
[363433140,1748722242481,-300.0,0.00018867,2]
[363433141,1748722242491,-300.0,0.00018867,2]
[363433142,1748722242500,-300.0,0.00018867,2]
[363433143,1748722242510,-300.0,0.00018867,2]
[363433144,1748722242519,-800.27605488,0.000189,2]
[363433145,1748722242529,-430.0,0.00018904,2]
[363433146,1748722242539,-430.0,0.00018904,2]
[363433147,1748722242548,-785.73,0.00018904,2]
[363433148,1748722242558,-430.0,0.00018904,2]
[363433149,1748722242567,-884.52,0.00018904,2]
[363433150,1748722242577,-461.57,0.00018904,2]
[363433151,1748722242587,-430.0,0.00018904,2]
[363433152,1748722242596,-430.0,0.00018904,2]
[363433153,1748722242605,-611.46,0.00018904,2]
[363433154,1748722242615,-430.0,0.00018904,2]
[363433155,1748722242624,-462.23,0.00018904,2]
[363433156,1748722242634,-430.0,0.00018904,2]
[363433157,1748722242645,-829.18,0.00018904,2]
[363433158,1748722242656,-533.41,0.00018904,2]
[363433159,1748722242665,-800.76,0.00018904,2]
[363433160,1748722242675,-430.0,0.00018904,2]
[363433161,1748722242684,-430.0,0.00018904,2]
[363433162,1748722242694,-430.0,0.00018904,2]
[363433163,1748722242704,-794.28,0.00018904,2]
[363433164,1748722242713,-1043.12,0.00018904,2]
[363433165,1748722242723,-612.57,0.00018904,2]
[363433166,1748722242732,-670.9,0.00018904,2]
[363433167,1748722242743,-1116.84,0.00018904,2]
[363433168,1748722242763,-1063.19,0.00018904,2]
[363433169,1748722242772,-430.0,0.00018904,2]
[363433170,1748722242782,-430.0,0.00018904,2]
[363433171,1748722242792,-1012.57,0.00018904,2]
[363433172,1748722242802,-843.24,0.00018904,2]
[363433173,1748722242811,-1455.93,0.00018904,2]
[363433174,1748722242820,-2184.12,0.00018904,2]
[363433175,1748722242830,-494.22,0.00018904,2]
[363433176,1748722242839,-547.61,0.00018904,2]
[363433177,1748722242849,-612.01346851,0.00019107,2]
[363433178,1748722242858,-5561.97,0.00019175,2]
[363433179,1748722242867,-430.0,0.00019178,2]
[363433180,1748722242877,-430.0,0.00019178,2]
[363433181,1748722242887,-430.0,0.00019178,2]
[363433182,1748722242896,-430.0,0.00019178,2]
[363433183,1748722242907,-430.0,0.00019178,2]
[363433184,1748722242917,-430.0,0.00019178,2]
[363433185,1748722242926,-430.0,0.00019178,2]
[363433186,1748722242935,-430.0,0.00019178,2]
[363433187,1748722242945,-430.0,0.00019178,2]
[363433188,1748722242954,-430.0,0.00019178,2]
[363433189,1748722242963,-430.0,0.00019178,2]
[363433190,1748722242973,-500.0,0.00019178,2]
[363433191,1748722242983,-500.0,0.00019178,2]
[363433192,1748722242993,-500.0,0.00019178,2]
[363433193,1748722243002,-500.0,0.00019178,2]
[363433194,1748722243012,-500.0,0.00019178,2]
[363433196,1748722243021,-500.0,0.00019178,2]
[363433198,1748722243031,-532.03747676,0.00019178,2]
[363433200,1748722243040,-430.0,0.00019178,2]
[363433202,1748722243051,-430.0,0.00019178,2]
[363433203,1748722243060,-785.73,0.00019178,2]
[363433205,1748722243070,-430.0,0.00019178,2]
[363433207,1748722243079,-884.52,0.00019178,2]
[363433209,1748722243089,-461.57,0.00019178,2]
[363433210,1748722243099,-430.0,0.00019178,2]
[363433211,1748722243108,-430.0,0.00019178,2]
[363433212,1748722243118,-611.46,0.00019178,2]
[363433213,1748722243127,-430.0,0.00019178,2]
[363433214,1748722243136,-462.23,0.00019178,2]
[363433215,1748722243147,-500.0,0.00019178,2]
[363433217,1748722243157,-431.74949309,0.00019178,2]
[363433218,1748722243167,-500.0,0.00019178,2]
[363433220,1748722243176,-150.88478374,0.00019178,2]
[363433222,1748722243187,-829.18,0.00019178,2]
[363433223,1748722243196,-533.41,0.00019178,2]
[363433224,1748722243206,-800.76,0.00019178,2]
[363433225,1748722243216,-430.0,0.00019178,2]
[363433226,1748722243225,-500.0,0.00019178,2]
[363433227,1748722243235,-500.0,0.00019178,2]
[363433228,1748722243244,-500.0,0.00019178,2]
[363433229,1748722243254,-500.0,0.00019178,2]
[363433230,1748722243264,-250.0,0.00019178,2]
[363433231,1748722243277,-430.0,0.00019178,2]
[363433232,1748722243287,-430.0,0.00019178,2]
[363433233,1748722243296,-794.28,0.00019178,2]
[363433234,1748722243305,-1043.12,0.00019178,2]
[363433235,1748722243316,-612.57,0.00019178,2]
[363433236,1748722243325,-670.9,0.00019178,2]
[363433237,1748722243335,-1116.84,0.00019178,2]
[363433238,1748722243347,-1063.19,0.00019178,2]
[363433239,1748722243356,-430.0,0.00019178,2]
[363433240,1748722243365,-430.0,0.00019178,2]
[363433241,1748722243375,-1012.57,0.00019178,2]
[363433242,1748722243384,-843.24,0.00019178,2]
[363433243,1748722243394,-1455.93,0.00019178,2]
[363433244,1748722243403,-2184.12,0.00019178,2]
[363433245,1748722243413,-494.22,0.00019178,2]
[363433246,1748722243422,-151.0,0.00019178,2]
[363433247,1748722243431,-164.933659,0.00019178,2]
[363433248,1748722243440,-156.587,0.00019233,2]
[363433249,1748722243450,-162.380719,0.00019288,2]
[363433250,1748722243459,-244.540024,0.00019329,2]
[363433251,1748722243469,-151.0,0.00019329,2]
[363433252,1748722243486,-151.0,0.00019329,2]
[363433253,1748722243500,-151.0,0.00019329,2]
[363433254,1748722243510,-151.0,0.00019329,2]
[363433255,1748722243520,-151.0,0.00019329,2]
[363433256,1748722243529,-151.0,0.00019329,2]
[363433257,1748722243539,-151.0,0.00019329,2]
[363433258,1748722243548,-151.0,0.00019329,2]
[363433259,1748722243557,-188.72232,0.00019329,2]
[363433260,1748722243567,-188.72232,0.00019329,2]
[363433261,1748722243576,-347.002619,0.00019329,2]
[363433262,1748722243585,-347.002619,0.00019329,2]
[363433263,1748722243595,-151.0,0.00019329,2]
[363433264,1748722243605,-151.0,0.00019329,2]
[363433265,1748722243615,-204.02062,0.00019329,2]
[363433266,1748722243624,-204.02062,0.00019329,2]
[363433267,1748722243634,-151.0,0.00019329,2]
[363433268,1748722243643,-151.0,0.00019329,2]
[363433269,1748722243653,-30191.14888411,0.00019329,2]
[363433270,1748722243663,-168.3888056,0.00019343,2]
[363433272,1748722243672,-612.01346851,0.00019348,2]
[363433274,1748722243682,-174.61919141,0.00019398,2]
[363433276,1748722243691,-5000.0,0.00019415,2]
[363433278,1748722243701,-430.0,0.00019452,2]
[363433279,1748722243710,-430.0,0.00019452,2]
[363433280,1748722243720,-151.0,0.00019452,2]
[363433281,1748722243729,-151.0,0.00019452,2]
[363433282,1748722243738,-320.98,0.00019452,2]
[363433283,1748722243748,-785.73,0.00019452,2]
[363433284,1748722243757,-183.1,0.00019452,2]
[363433285,1748722243767,-884.52,0.00019452,2]
[363433286,1748722243777,-461.57,0.00019452,2]
[363433287,1748722243787,-430.0,0.00019452,2]
[363433288,1748722243797,-430.0,0.00019452,2]
[363433289,1748722243806,-611.46,0.00019452,2]
[363433290,1748722243816,-430.0,0.00019452,2]
[363433291,1748722243825,-462.23,0.00019452,2]
[363433292,1748722243835,-939.330084,0.00019452,2]
[363433293,1748722243845,-939.330084,0.00019452,2]
[363433294,1748722243854,-829.18,0.00019452,2]
[363433295,1748722243864,-533.41,0.00019452,2]
[363433296,1748722243873,-800.76,0.00019452,2]
[363433297,1748722243883,-430.0,0.00019452,2]
[363433298,1748722243893,-430.0,0.00019452,2]
[363433299,1748722243904,-430.0,0.00019452,2]
[363433300,1748722243913,-794.28,0.00019452,2]
[363433301,1748722243922,-1043.12,0.00019452,2]
[363433302,1748722243932,-612.57,0.00019452,2]
[363433303,1748722243942,-670.9,0.00019452,2]
[363433304,1748722243951,-1116.84,0.00019452,2]
[363433305,1748722243961,-1063.19,0.00019452,2]
[363433306,1748722243971,-430.0,0.00019452,2]
[363433307,1748722243979,-430.0,0.00019452,2]
[363433308,1748722243990,-1012.57,0.00019452,2]
[363433309,1748722243999,-843.24,0.00019452,2]
[363433310,1748722244009,-1455.93,0.00019452,2]
[363433311,1748722244019,-2184.12,0.00019452,2]
[363433312,1748722244028,-494.22,0.00019452,2]
[363433313,1748722244038,-181.08010149,0.00019453,2]
[363433314,1748722244048,-187.78006525,0.00019508,2]
[363433315,1748722244057,-194.72792766,0.00019563,2]
[363433316,1748722244066,-612.01346851,0.0001959,2]
[363433317,1748722244076,-201.93286099,0.00019618,2]
[363433318,1748722244085,-329.56243183,0.00019673,2]
[363433319,1748722244095,-151.0,0.00019698,2]
[363433320,1748722244105,-500.0,0.00019725,2]
[363433321,1748722244116,-151.0,0.00019725,2]
[363433322,1748722244126,-430.0,0.00019726,2]
[363433323,1748722244135,-157.97060574,0.00019726,2]
[363433324,1748722244145,-151.0,0.00019726,2]
[363433325,1748722244155,-151.0,0.00019726,2]
[363433326,1748722244164,-390.415972,0.00019726,2]
[363433327,1748722244174,-390.415972,0.00019726,2]
[363433328,1748722244184,-785.73,0.00019726,2]
[363433329,1748722244194,-327.942387,0.00019726,2]
[363433330,1748722244203,-327.942387,0.00019726,2]
[363433331,1748722244213,-884.52,0.00019726,2]
[363433332,1748722244222,-461.57,0.00019726,2]
[363433333,1748722244232,-361.94,0.00019726,2]
[363433334,1748722244241,-430.0,0.00019726,2]
[363433335,1748722244250,-611.46,0.00019726,2]
[363433336,1748722244260,-430.0,0.00019726,2]
[363433337,1748722244273,-462.23,0.00019726,2]
[363433338,1748722244282,-829.18,0.00019726,2]
[363433339,1748722244292,-533.41,0.00019726,2]
[363433340,1748722244303,-800.76,0.00019726,2]
[363433341,1748722244313,-430.0,0.00019726,2]
[363433342,1748722244323,-430.0,0.00019726,2]
[363433343,1748722244333,-430.0,0.00019726,2]
[363433344,1748722244343,-794.28,0.00019726,2]
[363433345,1748722244354,-1043.12,0.00019726,2]
[363433346,1748722244363,-612.57,0.00019726,2]
[363433347,1748722244374,-670.9,0.00019726,2]
[363433348,1748722244383,-1116.84,0.00019726,2]
[363433349,1748722244393,-1063.19,0.00019726,2]
[363433350,1748722244403,-485.75,0.00019726,2]
[363433351,1748722244412,-430.0,0.00019726,2]
[363433352,1748722244422,-1012.57,0.00019726,2]
[363433353,1748722244431,-843.24,0.00019726,2]
[363433354,1748722244441,-1455.93,0.00019726,2]
[363433355,1748722244450,-2184.12,0.00019726,2]
[363433356,1748722244460,-494.22,0.00019726,2]
[363433357,1748722244469,-229.18523208,0.00019726,3]
[363433358,1748722244479,-151.0,0.00019753,2]
[363433359,1748722244489,-202.57043117,0.0001978,2]
[363433360,1748722244501,-501.0382725,0.00019787,2]
[363433361,1748722244510,-298.829,0.00019802,2]
[363433362,1748722244520,-180.69465561,0.00019802,2]
[363433363,1748722244530,-600.0,0.00019819,2]
[363433364,1748722244539,-500.0,0.00019819,2]
[363433365,1748722244549,-612.01346851,0.00019831,2]
[363433366,1748722244559,-500.0,0.00019875,2]
[363433367,1748722244569,-500.0,0.0001988,2]
[363433368,1748722244579,-500.0,0.0001988,2]
[363433369,1748722244589,-5000.0,0.00019963,2]
[363433370,1748722244599,-800.0,0.00019964,2]
[363433371,1748722244608,-785.73,0.0002,2]
[363433372,1748722244618,-884.52,0.0002,2]
[363433373,1748722244628,-461.57,0.0002,2]
[363433374,1748722244637,-430.0,0.0002,2]
[363433375,1748722244647,-611.46,0.0002,2]
[363433376,1748722244658,-430.0,0.0002,2]
[363433377,1748722244667,-462.23,0.0002,2]
[363433378,1748722244678,-829.18,0.0002,2]
[363433379,1748722244688,-533.41,0.0002,2]
[363433380,1748722244698,-800.76,0.0002,2]
[363433381,1748722244707,-430.0,0.0002,2]
[363433382,1748722244717,-430.0,0.0002,2]
[363433383,1748722244727,-430.0,0.0002,2]
[363433384,1748722244736,-794.28,0.0002,2]
[363433385,1748722244746,-1043.12,0.0002,2]
[363433386,1748722244756,-612.57,0.0002,2]
[363433387,1748722244765,-670.9,0.0002,2]
[363433388,1748722244775,-1116.84,0.0002,2]
[363433389,1748722244784,-1063.19,0.0002,2]
[363433390,1748722244794,-570.41,0.0002,2]
[363433391,1748722244803,-1012.57,0.0002,2]
[363433392,1748722244813,-843.24,0.0002,2]
[363433393,1748722244823,-1455.93,0.0002,2]
[363433394,1748722244833,-2184.12,0.0002,2]
[363433395,1748722244842,-494.22,0.0002,2]
[363433396,1748722244853,-151.0,0.00020067,2]
[363433397,1748722244862,-151.0,0.00020067,2]
[363433398,1748722244872,-151.0,0.00020067,2]
[363433399,1748722244882,-1126.125623,0.00020067,2]
[363433400,1748722244891,-1126.125623,0.00020067,2]
[363433401,1748722244901,-151.0,0.00020067,2]
[363433402,1748722244911,-151.0,0.00020067,2]
[363433403,1748722244920,-151.101352,0.00020067,2]
[363433404,1748722244930,-151.101352,0.00020067,2]
[363433405,1748722244939,-151.0,0.00020067,2]
[363433406,1748722244949,-151.0,0.00020067,2]
[363433407,1748722244958,-165.745473,0.00020067,2]
[363433408,1748722244968,-165.745473,0.00020067,2]
[363433409,1748722244977,-284.548322,0.00020067,2]
[363433410,1748722244987,-284.548322,0.00020067,2]
[363433411,1748722244996,-612.01346851,0.00020072,2]
[363433412,1748722245006,-11123.94,0.00020088,2]
[363433413,1748722245016,-667.480186,0.00020187,2]
[363433414,1748722245026,-215.0738,0.00020236,2]
[363433415,1748722245036,-785.73,0.00020273,2]
[363433416,1748722245046,-884.52,0.00020273,2]
[363433417,1748722245055,-461.57,0.00020273,2]
[363433418,1748722245064,-430.0,0.00020273,2]
[363433419,1748722245075,-611.46,0.00020273,2]
[363433420,1748722245086,-182.56,0.00020273,2]
[363433421,1748722245096,-462.23,0.00020273,2]
[363433422,1748722245105,-829.18,0.00020273,2]
[363433423,1748722245115,-533.41,0.00020273,2]
[363433424,1748722245125,-800.76,0.00020273,2]
[363433425,1748722245135,-430.0,0.00020273,2]
[363433426,1748722245145,-430.0,0.00020273,2]
[363433427,1748722245156,-430.0,0.00020273,2]
[363433428,1748722245166,-794.28,0.00020273,2]
[363433429,1748722245175,-1043.12,0.00020273,2]
[363433430,1748722245185,-612.57,0.00020273,2]
[363433431,1748722245196,-670.9,0.00020273,2]
[363433432,1748722245206,-1063.19,0.00020273,2]
[363433433,1748722245216,-1116.84,0.00020273,2]
[363433434,1748722245226,-1012.57,0.00020273,2]
[363433435,1748722245236,-843.24,0.00020273,2]
[363433436,1748722245245,-1455.93,0.00020273,2]
[363433437,1748722245255,-2184.12,0.00020273,2]
[363433438,1748722245265,-494.22,0.00020273,2]
[363433439,1748722245277,-612.01346851,0.00020314,3]
[363433440,1748722245287,-1200.0,0.00020367,2]
[363433441,1748722245297,-1000.0,0.00020367,2]
[363433442,1748722245307,-500.0,0.00020423,2]
[363433443,1748722245318,-1000.0,0.00020428,2]
[363433444,1748722245328,-785.73,0.00020547,2]
[363433445,1748722245338,-884.52,0.00020547,2]
[363433446,1748722245348,-461.57,0.00020547,2]
[363433447,1748722245358,-430.0,0.00020547,2]
[363433448,1748722245368,-611.46,0.00020547,2]
[363433449,1748722245378,-462.23,0.00020547,2]
[363433450,1748722245387,-829.18,0.00020547,2]
[363433451,1748722245397,-533.41,0.00020547,2]
[363433452,1748722245406,-800.76,0.00020547,2]
[363433453,1748722245416,-430.0,0.00020547,2]
[363433454,1748722245426,-430.0,0.00020547,2]
[363433455,1748722245435,-430.0,0.00020547,2]
[363433456,1748722245445,-794.28,0.00020547,2]
[363433457,1748722245454,-1043.12,0.00020547,2]
[363433458,1748722245463,-612.57,0.00020547,2]
[363433459,1748722245473,-670.9,0.00020547,2]
[363433460,1748722245483,-1063.19,0.00020547,2]
[363433461,1748722245609,-1116.84,0.00020547,2]
[363433462,1748722245620,-1012.57,0.00020547,2]
[363433463,1748722245629,-843.24,0.00020547,2]
[363433464,1748722245639,-1455.93,0.00020547,2]
[363433465,1748722245648,-2184.12,0.00020547,2]
[363433466,1748722245659,-494.22,0.00020547,2]
[363433467,1748722245668,-612.01346851,0.00020555,3]
[363433468,1748722245677,-255.43,0.000206,2]
[363433469,1748722245687,-9863.52,0.000206,2]
[363433470,1748722245696,-151.0,0.000206,2]
[363433471,1748722245706,-151.0,0.000206,2]
[363433472,1748722245716,-151.0,0.000206,2]
[363433473,1748722245725,-519.023207,0.000206,2]
[363433474,1748722245735,-519.023207,0.000206,2]
[363433475,1748722245745,-151.0,0.000206,2]
[363433476,1748722245755,-151.0,0.000206,2]
[363433477,1748722245765,-150.0,0.00020602,2]
[363433478,1748722245775,-962.0,0.00020602,2]
[363433479,1748722245784,-2227.0,0.00020602,2]
[363433480,1748722245794,-708.0,0.00020602,2]
[363433481,1748722245804,-151.0,0.00020796,2]
[363433482,1748722245814,-151.0,0.00020796,2]
[363433483,1748722245825,-612.01346851,0.00020797,4]
[363433484,1748722245835,-785.73,0.00020821,2]
[363433485,1748722245845,-151.0,0.00020821,2]
[363433486,1748722245854,-884.52,0.00020821,2]
[363433487,1748722245864,-247.061767,0.00020821,2]
[363433488,1748722245873,-461.57,0.00020821,2]
[363433489,1748722245883,-151.0,0.00020821,2]
[363433490,1748722245893,-430.0,0.00020821,2]
[363433491,1748722245904,-611.46,0.00020821,2]
[363433492,1748722245914,-462.23,0.00020821,2]
[363433493,1748722245924,-151.0,0.00020821,2]
[363433494,1748722245935,-151.0,0.00020821,2]
[363433495,1748722245944,-151.0,0.00020821,2]
[363433496,1748722245954,-829.18,0.00020821,2]
[363433497,1748722245964,-533.41,0.00020821,2]
[363433498,1748722245975,-800.76,0.00020821,2]
[363433499,1748722245984,-430.0,0.00020821,2]
[363433500,1748722245994,-151.0,0.00020821,2]
[363433501,1748722246005,-430.0,0.00020821,2]
[363433502,1748722246014,-430.0,0.00020821,2]
[363433503,1748722246024,-794.28,0.00020821,2]
[363433504,1748722246033,-188.72232,0.00020821,2]
[363433505,1748722246043,-188.72232,0.00020821,2]
[363433507,1748722246052,-1043.12,0.00020821,2]
[363433509,1748722246062,-347.002619,0.00020821,2]
[363433511,1748722246071,-347.002619,0.00020821,2]
[363433513,1748722246082,-612.57,0.00020821,2]
[363433514,1748722246091,-670.9,0.00020821,2]
[363433516,1748722246101,-1063.19,0.00020821,2]